[Event "101st Irish Championship 2022"]
[Site "Dublin"]
[Date "2022.07.05"]
[Round "3.2"]
[White "O`Gorman, Tom"]
[Black "O'Connell, Gerard"]
[Result "1-0"]
[ECO "D02"]
[WhiteElo "2401"]
[BlackElo "2052"]
[Annotator "TA"]
[PlyCount "111"]
[EventDate "2022.07.05"]
[EventType "swiss"]
[EventCountry "IRL"]
[SourceTitle "playchess.com"]
[Source "ChessBase"]
[SourceQuality "1"]
[TimeControl "40/6300+30:1800+30"]

{[%evp 9,111,10,18,31,17,11,31,31,37,27,39,37,36,13,10,0,14,18,22,11,67,31,69,66,63,71,70,63,60,57,64,67,60,57,55,32,86,85,91,91,95,97,95,16,16,18,15,13,22,16,17,25,16,19,17,34,33,14,14,21,124,124,123,131,124,129,123,120,123,106,367,370,365,345,368,404,479,483,469,464,443,427,408,380,395,397,497,500,488,474,497,487,467,470,670,639,580,577,1505,1360,2123,1929,2140,1951]} 1. d4 {[%emt 0:00:11]} Nf6 {[%emt 0:00:11]} 2. Nf3 {[%emt 0:00:26]} g6 {[%emt 0:00:15]} 3. Nbd2 {[%emt 0:00:19]} d5 {[%emt 0:00:41]} 4. b4 {[%emt 0:00:31]} Bg7 {[%emt 0:01:11]} 5. e3 {[%emt 0:00:29]} a5 {[%emt 0:01:05]} 6. b5 {[%emt 0:00:09] D02: 1 d4 d5 2 Nf3 sidelines, including 2...Nf6 3 g3 and 2...Nf6 3 Bf4.} c5 {[%emt 0:01:53]} 7. bxc6 {[%emt 0:00:25]} bxc6 {[%emt 0:02:33]} 8. Ba3 {[%emt 0:01:16] White is slightly better.} O-O {[%emt 0:01:51]} 9. Be2 {[%emt 0:01:32]} Na6 {[%emt 0:03:46][%cal Oc6c5]} 10. O-O {[%emt 0:10:48]} c5 {[%emt 0:02:22]} 11. c4 {[%emt 0:03:49][%cal Bc2c4,Bc4c5][%mdl 32]} ({Reject} 11. dxc5 Ne4 $11) (11. Bxc5 Nxc5 12. dxc5 Ne4 13. Nxe4 Bxa1 14. Qxa1 dxe4 $17) 11... Nb4 {[%emt 0:04:27]} 12. Bb2 {[%emt 0:11:38]} cxd4 {[%emt 0:13:36]} 13. Nxd4 {[%emt 0:01:08]} e5 {[%emt 0:20:14]} 14. Nb5 {[%emt 0:16:35]} e4 {[%emt 0:11:23] [#]} (14... Bf5 $11) 15. c5 $146 {[%emt 0:24:31]} (15. a3 $5 {[%cal Ra3b4]} Nd3 16. Bd4 $14) ({Predecessor:} 15. a3 Nd3 16. Bd4 Rb8 17. a4 Bb7 18. cxd5 Qxd5 19. f3 Ne5 20. Nc3 Qe6 21. fxe4 {½-½ (74) Bernadskiy,V (2583)-Frolov,A (2416) Zhitomir 2017}) 15... Ba6 {[%emt 0:06:01]} 16. a4 $1 {[%emt 0:04:14]} Nd7 {[%emt 0:05:27]} 17. Bxg7 {[%emt 0:01:43]} Kxg7 {[%emt 0:00:12]} 18. Nb3 {[%emt 0:02:24]} Ne5 {[%emt 0:04:08]} 19. Qd2 {[%emt 0:01:35]} Nec6 {[%emt 0:18:26]} 20. Rfd1 {[%emt 0:03:32] White is more active.} Kg8 {[%emt 0:01:22]} 21. Rac1 {[%emt 0:01:32]} Rc8 {[%emt 0:01:01]} 22. Nd6 {[%emt 0:01:40]} Bxe2 {[%emt 0:00:29]} ({Better is} 22... Ra8 $1 $14) 23. Qxe2 $16 {[%emt 0:00:07]} Nd3 {[%emt 0:05:43]} 24. Nxc8 {[%emt 0:03:41]} Nxc1 {[%emt 0:00:13]} 25. Rxc1 {[%emt 0:00:28]} ({Don't play} 25. Nxc1 $6 Qxc8 26. h3 (26. Rxd5 Nb4 $11) 26... Qe6 $11) 25... Qxc8 {[%emt 0:00:09]} 26. Qb5 {[%emt 0:01:03]} (26. Qd2 $16) 26... Qc7 $11 {[%emt 0:01:40] Strongly threatening ...Rb8.} 27. Qb6 {[%emt 0:11:35]} Rc8 {[%emt 0:00:25]} 28. h3 {[%emt 0:01:21]} Nb4 {[%emt 0:03:53][%cal Bc6b4,Bb4d3,Bd3c5][%mdl 32]} (28... Kf8 {looks sharper.} 29. Rd1 Nb4 30. Qf6 Kg8) 29. Qxa5 {[%emt 0:04:02]} Qxa5 {[%emt 0:00:10]} 30. Nxa5 {[%emt 0:00:07][%mdl 4096] Endgame KRN-KRN} Nd3 {[%emt 0:00:03][%csl LRc1,LRc5][%mdl 64] Deflection} 31. Ra1 {[%emt 0:00:19]} Rxc5 {[%emt 0:01:10]} 32. Nb3 {[%emt 0:00:31]} Rc6 {[%emt 0:01:40]} 33. Nd4 {[%emt 0:02:00]} Ra6 {[%emt 0:00:43]} 34. a5 {[%emt 0:00:42][%cal Ba4a5,Ba5a6][%mdl 32]} Kf8 {[%emt 0:00:50] [#]} (34... Nc5 $11) 35. Nb5 $1 $16 {[%emt 0:00:40]} Nc5 {[%emt 0:01:29]} 36. Nc7 {[%emt 0:01:15][%csl LRa6,LRd5]} Ra7 {[%emt 0:00:09] [#]} 37. a6 $1 {[%emt 0:00:32][%cal Oa1a5]} Ke7 {[%emt 0:00:12]} 38. Nxd5+ {[%emt 0:00:22]} Kd6 {[%emt 0:00:04]} 39. Nb4 {[%emt 0:00:07]} Nd3 $2 {[%emt 0:00:08][%mdl 8192] [#] This move loses the game for Black.} (39... Kc7 $16) 40. Nxd3 $1 $18 {[%emt 0:00:17]} exd3 {[%emt 0:00:06] KR-KR} 41. Kf1 {[%emt 0:30:20]} Kc5 {[%emt 0:30:15]} 42. Ke1 {[%emt 0:00:29]} Kc6 {[%emt 0:03:57]} 43. Kd2 {[%emt 0:00:08]} Kb6 {[%emt 0:00:12]} 44. Kxd3 {[%emt 0:00:10]} Rd7+ {[%emt 0:00:04]} 45. Ke2 {[%emt 0:00:16][%cal Oa6a7] a7! is the strong threat.} Ka7 {[%emt 0:00:05]} 46. Ra2 {[%emt 0:00:06]} Rd5 {[%emt 0:00:31]} 47. e4 {[%emt 0:00:40]} Rd4 {[%emt 0:00:06]} 48. Ke3 {[%emt 0:00:05] White is clearly winning.} Rb4 {[%emt 0:00:03]} 49. Kf4 {[%emt 0:00:17]} f6 {[%emt 0:00:14]} 50. Ra3 {[%emt 0:00:29]} Rb5 {[%emt 0:00:17]} 51. Ke3 {[%emt 0:00:43]} Rg5 {[%emt 0:00:18]} (51... g5 $142 52. f4 h6) 52. g3 {[%emt 0:00:21] aiming for Kd4.} Rh5 {[%emt 0:00:07]} 53. h4 {[%emt 0:00:11][%cal Bh3h4,Bh4g5][%mdl 32] Hoping for f4.} Rc5 {[%emt 0:00:06]} 54. Kd4 {[%emt 0:00:33]} Rb5 {[%emt 0:00:14]} 55. f4 {[%emt 0:00:12]} g5 {[%emt 0:00:44]} 56. hxg5 {[%emt 0:00:19] Weighted Error Value: White=0.06 (flawless) /Black=0.25 (precise)} 1-0

[Event "101st Irish Championship 2022"]
[Site "Dublin"]
[Date "2022.07.05"]
[Round "3.3"]
[White "Flynn, Jacob"]
[Black "Li, Henry"]
[Result "0-1"]
[ECO "E63"]
[WhiteElo "2199"]
[BlackElo "2319"]
[Annotator "TA"]
[PlyCount "88"]
[EventDate "2022.07.05"]
[EventType "swiss"]
[EventCountry "IRL"]
[SourceTitle "playchess.com"]
[Source "ChessBase"]
[SourceQuality "1"]
[TimeControl "40/6300+30:1800+30"]

{[%evp 16,88,31,22,37,47,61,49,47,44,49,12,16,20,9,-74,62,11,21,0,0,0,0,-2,0,0,7,0,1,0,0,19,23,0,0,0,0,0,4,-20,0,-7,0,-7,0,0,0,0,0,0,0,0,0,0,0,0,0,0,0,0,0,-77,-68,-242,-229,-247,-251,-247,-218,-518,-509,-633,-626,-609,-550]} 1. d4 {[%emt 0:04:21]} Nf6 {[%emt 0:00:10]} 2. Nf3 {[%emt 0:00:07]} g6 {[%emt 0:00:08]} 3. g3 {[%emt 0:00:06]} Bg7 {[%emt 0:00:14]} 4. Bg2 {[%emt 0:00:04]} O-O {[%emt 0:00:12]} 5. O-O {[%emt 0:00:08]} d6 {[%emt 0:00:10]} 6. c4 {[%emt 0:00:06]} Nc6 {[%emt 0:06:59]} 7. Nc3 {[%emt 0:00:06]} a6 {[%emt 0:03:16] 7...e5 is the modern continuation.} 8. b3 {[%emt 0:00:40]} Rb8 {[%emt 0:03:33]} 9. Nd5 {[%emt 0:00:51]} Bd7 {[%emt 0:06:58] E63: King's Indian: Fianchetto: Panno Variation with 7...a6.} 10. Bb2 {[%emt 0:04:37]} Ne4 {[%emt 0:11:27] [#]} 11. Nf4 $146 {[%emt 0:31:44]} ({Predecessor:} 11. Rc1 b5 12. Nf4 {½-½ (12) Illner,A (2375)-Van Kampen,R (2566) Amsterdam 2012}) 11... Re8 {[%emt 0:29:56] White is slightly better.} 12. Nd3 {[%emt 0:06:15]} e6 {[%emt 0:17:40]} 13. d5 {[%emt 0:08:11]} exd5 {[%emt 0:02:29]} 14. cxd5 {[%emt 0:01:35] Hoping for Bxg7.} Bxb2 {[%emt 0:03:21]} 15. Nxb2 {[%emt 0:24:15] [#]} (15. dxc6 $11 Nc3 16. Qc2 $1 (16. cxd7 Rxe2 17. Qe1 Rxe1 $15) 16... Bxa1 17. cxd7 Nxe2+ 18. Kh1 Qxd7 19. Rxa1) 15... Ne5 {[%emt 0:01:36] Black is more active.} (15... Nb4 $1 $17 16. Nc4 Nc3) 16. Qd4 {[%emt 0:06:17]} (16. Nxe5 $14 Rxe5 17. Qd4) 16... Nxf3+ {[%emt 0:02:06]} 17. exf3 {[%emt 0:04:01]} Qf6 {[%emt 0:00:58]} 18. Qxf6 {[%emt 0:00:12]} Nxf6 {[%emt 0:00:03]} 19. f4 {[%emt 0:00:23]} Re2 {[%emt 0:00:43]} 20. Nc4 {[%emt 0:00:30]} b5 {[%emt 0:10:06]} 21. Bf3 {[%emt 0:02:21]} Rc2 {[%emt 0:00:26]} 22. Ne3 {[%emt 0:00:14]} Rd2 {[%emt 0:01:05]} 23. Rfc1 {[%emt 0:00:42]} Rb7 {[%emt 0:00:32]} 24. Rd1 {[%emt 0:01:25]} Rb2 {[%emt 0:01:49]} 25. Rdb1 {[%emt 0:02:25]} Rxb1+ {[%emt 0:02:08]} 26. Rxb1 {[%emt 0:00:01]} a5 {[%emt 0:00:24]} 27. a3 {[%emt 0:01:58]} h5 {[%emt 0:01:39]} 28. Rc1 {[%emt 0:03:55]} Kf8 {[%emt 0:01:41]} 29. Nc2 {[%emt 0:01:18]} Bf5 {[%emt 0:02:28]} 30. Nd4 {[%emt 0:02:08]} Be4 {[%emt 0:00:05]} 31. Bxe4 {[%emt 0:00:24]} Nxe4 $11 {[%emt 0:00:03][%mdl 4096] Endgame KRN-KRN} 32. Nc6 {[%emt 0:00:22]} a4 {[%emt 0:00:51]} 33. b4 {[%emt 0:03:47]} Nf6 {[%emt 0:00:25]} 34. Na5 {[%emt 0:01:05]} Ra7 {[%emt 0:00:39]} 35. Nc6 {[%emt 0:00:23]} Rb7 {[%emt 0:00:15]} 36. Na5 {[%emt 0:00:55]} Rb6 {[%emt 0:01:24]} 37. Rxc7 {[%emt 0:03:00]} Nxd5 {[%emt 0:00:06]} 38. Ra7 {[%emt 0:01:28]} (38. Rc2 $11) 38... Nc3 $17 {[%emt 0:01:12]} 39. Nb7 $2 {[%emt 0:01:33] This costs White the game.} (39. Kf1 $15) 39... Ke8 {[%emt 0:01:11] ...Nb1 is the strong threat.} 40. Ra8+ {[%emt 0:00:31]} Kd7 {[%emt 0:01:26]} 41. Nd8 {[%emt 0:01:42]} Ke7 {[%emt 0:09:54] White must now prevent ...Nb1.} 42. Rc8 $2 {[%emt 0:00:19]} (42. Kf1 {was forced.}) 42... Nd5 $19 {[%emt 0:02:59] Black is clearly winning.} 43. Nc6+ {[%emt 0:03:37]} Kd7 {[%emt 0:00:32]} 44. Na7 {[%emt 0:00:06]} Rb7 {[%emt 0:02:23] Weighted Error Value: White=0.37/Black=0.08 (flawless)} 0-1

[Event "101st Irish Championship 2022"]
[Site "Dublin"]
[Date "2022.07.05"]
[Round "3.4"]
[White "Pang, Khai Jie Ryan"]
[Black "O`Donnell, Conor"]
[Result "1/2-1/2"]
[ECO "B10"]
[WhiteElo "1841"]
[BlackElo "2269"]
[Annotator "TA"]
[PlyCount "92"]
[EventDate "2022.07.05"]
[EventType "swiss"]
[EventCountry "IRL"]
[SourceTitle "playchess.com"]
[Source "ChessBase"]
[SourceQuality "1"]
[TimeControl "40/6300+30:1800+30"]

{[%evp 9,92,0,-13,-7,0,0,24,14,24,6,14,14,25,17,39,48,29,33,40,9,47,35,43,39,40,31,34,20,34,21,41,30,38,37,54,34,66,47,53,0,0,4,10,-147,-132,-167,-147,-158,-141,-255,-244,-236,0,0,0,-233,-124,-121,-104,-281,-274,-221,-75,-222,-214,-227,-213,-197,-8,-8,-8,-8,0,0,0,0,0,0,0,0,0,-8,0,0,0]} 1. e4 {[%emt 0:00:05]} c6 {[%emt 0:04:50]} 2. Nf3 {[%emt 0:00:26]} d5 {[%emt 0:00:03]} 3. d3 {[%emt 0:00:07]} dxe4 {[%emt 0:00:14]} 4. dxe4 {[%emt 0:00:08]} Qxd1+ {[%emt 0:00:09]} 5. Kxd1 {[%emt 0:00:06]} Nf6 {[%emt 0:00:29]} 6. Nbd2 {[%emt 0:01:45] B10: Caro-Kann: 2 d3 and 2 c4.} g6 $1 {[%emt 0:01:03] 6...g6 is better than 6...Bg4.} 7. c3 {[%emt 0:04:41] [#]} Bg4 $146 {[%emt 0:15:37]} ({Predecessor:} 7... Bg7 8. Ne1 Ng4 9. Nd3 Nd7 10. Nc4 O-O 11. f3 Nge5 12. Ndxe5 Nxe5 13. Be3 Be6 14. Nxe5 Bxe5 {½-½ (82) Van Foreest,J (2612)-Martirosyan,H (2607) Chess.com INT 2019}) 8. Be2 {[%emt 0:01:33] White has an edge.} Nbd7 {[%emt 0:02:45]} 9. Ne1 {[%emt 0:03:10]} Bxe2+ {[%emt 0:02:33]} 10. Kxe2 {[%emt 0:00:07]} Bh6 {[%emt 0:13:50]} 11. f3 $1 {[%emt 0:01:27]} a5 {[%emt 0:25:38]} 12. Nd3 {[%emt 0:07:14]} a4 {[%emt 0:04:01]} 13. Nc4 {[%emt 0:04:10]} Bxc1 {[%emt 0:01:37]} 14. Raxc1 {[%emt 0:01:52]} O-O {[%emt 0:05:05]} 15. g4 {[%emt 0:01:51]} Rfd8 {[%emt 0:04:46]} 16. h4 {[%emt 0:02:35]} Ne8 {[%emt 0:04:41]} 17. Rcd1 {[%emt 0:06:35]} Nd6 {[%emt 0:02:28]} 18. Nxd6 {[%emt 0:10:11]} exd6 {[%emt 0:00:02]} 19. f4 {[%emt 0:00:20]} f6 {[%emt 0:04:36]} 20. Kf3 {[%emt 0:02:02]} Kf7 {[%emt 0:05:10]} 21. Rh2 {[%emt 0:02:24]} Ra5 {[%emt 0:02:54]} 22. Nb4 $1 {[%emt 0:04:26]} Ke7 {[%emt 0:01:05]} 23. Nc2 {[%emt 0:01:35]} h5 {[%emt 0:01:48]} 24. g5 {[%emt 0:06:56]} (24. Ne3 $14) 24... fxg5 $11 {[%emt 0:03:42]} 25. hxg5 {[%emt 0:00:17]} Rf8 {[%emt 0:00:52]} 26. Kg3 $2 {[%emt 0:02:55]} ({Better is} 26. Ke3 $11) 26... Nc5 $17 {[%emt 0:00:41]} 27. Re2 {[%emt 0:00:35] [#]} Ne6 $1 {[%emt 0:00:36]} 28. f5 {[%emt 0:16:49]} Nxg5 {[%emt 0:00:14] White must now prevent ...Re5.} ({Weaker is} 28... gxf5 29. exf5 Rfxf5 30. Rxe6+ Kxe6 31. Nd4+ Kf7 32. Nxf5 Rxf5 33. Rxd6 $17) 29. Nd4 {[%emt 0:02:07]} (29. fxg6 $17 {was necessary.} Rg8 30. Nd4 Rxg6 31. Kf4) 29... Re5 $19 {[%emt 0:02:34]} 30. Kf4 {[%emt 0:03:07]} Nh3+ {[%emt 0:00:02]} 31. Kg3 {[%emt 0:00:25]} Ng5 {[%emt 0:00:02]} 32. Kf4 {[%emt 0:00:05]} Nh7 {[%emt 0:00:18]} (32... Ne6+ $19 33. Nxe6 Rxe6) 33. Nf3 {[%emt 0:01:17]} g5+ {[%emt 0:05:28]} 34. Nxg5 $2 {[%emt 0:02:02]} (34. Kg3 $17 {was called for.}) 34... Nxg5 {[%emt 0:00:02]} 35. Kxg5 $17 {[%emt 0:00:09][%mdl 4096] Endgame [#] KRR-KRR} d5 {[%emt 0:02:24]} (35... Rfxf5+ $1 $19 {[%mdl 512] has better winning chances.} 36. exf5 Rxe2) 36. Rde1 {[%emt 0:01:06]} (36. Kxh5 $17 Kf6 37. Kg4) 36... dxe4 $19 {[%emt 0:00:09]} 37. Kxh5 {[%emt 0:03:09]} Rexf5+ {[%emt 0:00:49]} ({Stronger than} 37... Rfxf5+ 38. Kg4 $15) 38. Kg4 {[%emt 0:03:04]} Kf6 $2 {[%emt 0:00:13]} ({Black should try} 38... Rf4+ $19 39. Kg3 Rf3+ 40. Kg2 Rg8+ 41. Kh2 Kd6 42. Rxe4 Rf2+ 43. Kh3 b5) 39. Rxe4 $11 {[%emt 0:01:24] The position is equal.} Rg8+ {[%emt 0:00:03]} 40. Kh4 {[%emt 0:01:27]} Rh8+ {[%emt 0:00:35]} 41. Kg3 {[%emt 0:31:34]} Rg5+ {[%emt 0:03:05]} 42. Kf4 {[%emt 0:19:12] White threatens Re6+ and mate.} Rh4+ {[%emt 0:00:57]} 43. Kf3 {[%emt 0:00:00]} Rh3+ {[%emt 0:01:04]} 44. Kf4 {[%emt 0:00:00] Threatening mate with Re6+.} Rh4+ {[%emt 0:00:16]} 45. Kf3 {[%emt 0:00:00]} Rh3+ {[%emt 0:06:33]} 46. Kf4 {[%emt 0:00:00] Hoping for Re6+.} Rh4+ {[%emt 0:00:59] White happily takes the draw.  Weighted Error Value: White=0.20 (precise) /Black=0.23 (precise)} 1/2-1/2

[Event "101st Irish Championship 2022"]
[Site "Dublin"]
[Date "2022.07.05"]
[Round "3.5"]
[White "Carroll, Peter"]
[Black "Daly, Colm"]
[Result "0-1"]
[ECO "D00"]
[WhiteElo "2116"]
[BlackElo "2190"]
[Annotator "TA"]
[PlyCount "39"]
[EventDate "2022.07.05"]
[EventType "swiss"]
[EventCountry "IRL"]
[SourceTitle "playchess.com"]
[Source "ChessBase"]
[SourceQuality "1"]
[TimeControl "40/6300+30:1800+30"]

{[%evp 9,39,-20,10,-49,-45,-56,-27,-20,-13,-21,-27,-47,-50,-44,-33,-47,0,-69,-81,-89,-78,-126,-124,-417,-404,-466,-450,-408,-386,-383,-370,-29994]} 1. d4 {[%emt 0:00:30]} d5 {[%emt 0:00:30]} 2. Nc3 {[%emt 0:00:30]} Bf5 {[%emt 0:00:30]} 3. f3 {[%emt 0:00:30]} e6 {[%emt 0:00:30]} 4. e4 {[%emt 0:00:30]} Bg6 {[%emt 0:00:30]} 5. Be3 {[%emt 0:00:30]} Bb4 {[%emt 0:00:30]} 6. Bd3 {[%emt 0:00:30] D00: 1 d4 d5: Unusual lines.} (6. h4 $11 h5 7. exd5) 6... dxe4 $15 {[%emt 0:00:30]} 7. fxe4 {[%emt 0:00:30]} Bxc3+ {[%emt 0:00:30]} 8. bxc3 {[%emt 0:00:30] [#] Black has an edge.} Bxe4 $1 {[%emt 0:00:30]} 9. Nf3 {[%emt 0:00:30]} Nf6 {[%emt 0:00:30] [#]} 10. Bxe4 $146 {[%emt 0:00:30]} ({Predecessor:} 10. O-O Nbd7 11. Bg5 Bc6 12. Ne5 Nxe5 13. dxe5 Qd5 14. Qe2 Nd7 15. Qf2 f5 16. c4 Qc5 17. Be3 Qe7 18. Bd4 O-O 19. c3 b6 20. Qb2 Nc5 21. Qa3 Qg5 {0-1 (21) Gastaldi,F-Giusti,A corr 1949}) 10... Nxe4 {[%emt 0:00:30]} 11. Qd3 {[%emt 0:00:30]} Nd6 {[%emt 0:00:30] Pair of Knights!} 12. O-O {[%emt 0:00:30]} h6 {[%emt 0:00:30]} (12... f6 $15 {might be stronger.}) 13. d5 {[%emt 0:00:30]} (13. Rae1 $11) 13... exd5 {[%emt 0:00:30]} 14. Rae1 {[%emt 0:00:30] [#] Bg5+ is the strong threat.} O-O {[%emt 0:00:30]} 15. Ne5 {[%emt 0:00:30]} (15. Qxd5 $142 Nc6 16. Bf4) 15... Nd7 $17 {[%emt 0:00:30]} 16. Bxh6 $2 {[%emt 0:00:30][%mdl 8192] This move loses the game for White.} gxh6 $19 {[%emt 0:00:30]} 17. Qh3 {[%emt 0:00:30]} Nxe5 {[%emt 0:00:30]} 18. Rxe5 {[%emt 0:00:30]} Ne4 {[%emt 0:00:30] Strongly threatening ...Qd6.} 19. Qxh6 {[%emt 0:00:30] White threatens Rh5 and mate.} Qd6 {[%emt 0:00:30]} 20. Qh5 $2 {[%emt 0:00:30] Weighted Error Value: White=0.69/Black=0.11 (very precise)} (20. Qxd6 $19 cxd6 21. Rxd5) 0-1

[Event "101st Irish Championship 2022"]
[Site "Dublin"]
[Date "2022.07.05"]
[Round "3.6"]
[White "Venkatesan, Kavin"]
[Black "Fox, Anthony"]
[Result "1/2-1/2"]
[ECO "C00"]
[WhiteElo "2076"]
[BlackElo "1945"]
[Annotator "TA"]
[PlyCount "73"]
[EventDate "2022.07.05"]
[EventType "swiss"]
[EventCountry "IRL"]
[SourceTitle "playchess.com"]
[Source "ChessBase"]
[SourceQuality "1"]
[TimeControl "40/6300+30:1800+30"]

{[%evp 11,73,-8,0,-17,-17,-20,-13,-3,0,-14,-8,-6,0,-10,0,0,0,0,0,0,0,0,0,0,-3,0,0,0,0,0,0,0,10,-8,0,0,0,0,0,0,0,0,0,0,0,0,0,0,0,0,0,0,0,0,0,0,0,0,0,0,0,0,0,0]} 1. c4 {[%emt 0:00:11]} e6 {[%emt 0:00:00]} 2. e4 {[%emt 0:00:09]} d5 {[%emt 0:00:00]} 3. cxd5 {[%emt 0:00:09]} exd5 {[%emt 0:00:08]} 4. exd5 {[%emt 0:00:05]} Nf6 {[%emt 0:00:30]} 5. Bb5+ {[%emt 0:00:07]} Nbd7 {[%emt 0:00:56]} 6. Nc3 {[%emt 0:01:23]} Be7 {[%emt 0:00:11] The position is equal.} 7. d4 {[%emt 0:03:23] C00: French: Unusual White 2nd moves.} O-O {[%emt 0:00:17]} 8. Nf3 {[%emt 0:00:49]} Nb6 {[%emt 0:00:45]} 9. O-O {[%emt 0:01:39]} Nbxd5 {[%emt 0:00:49]} 10. Bc4 {[%emt 0:01:49]} c6 {[%emt 0:02:29]} 11. Ne5 {[%emt 0:14:13] [#]} Be6 $146 {[%emt 0:18:13]} ({Predecessor:} 11... Qa5 12. Bb3 Be6 13. Bg5 Rad8 14. Qf3 Nc7 15. Ne4 Nxe4 16. Bxe7 Nd2 17. Qf4 Nxf1 18. Bxd8 Bxb3 19. Bxc7 Qxc7 20. axb3 {½-½ (51) Seleljo,D (2344)-Hlavacek,R (2188) Czech Republic 2000}) 12. Bg5 {[%emt 0:10:19]} Nxc3 {[%emt 0:15:53]} 13. bxc3 {[%emt 0:00:04]} Bxc4 {[%emt 0:00:32]} 14. Nxc4 {[%emt 0:00:04]} Nd5 {[%emt 0:05:57]} 15. Bxe7 {[%emt 0:02:21]} Qxe7 {[%emt 0:00:14]} 16. Qd2 {[%emt 0:02:48]} Rfe8 {[%emt 0:01:36]} 17. Rfe1 {[%emt 0:08:56]} Qc7 {[%emt 0:01:39]} 18. g3 {[%emt 0:11:41]} Rad8 {[%emt 0:01:12]} 19. Rxe8+ {[%emt 0:02:03]} Rxe8 {[%emt 0:00:10]} 20. Re1 {[%emt 0:00:45]} Rxe1+ {[%emt 0:03:01]} 21. Qxe1 $11 {[%emt 0:00:05][%cal Re1e8][%mdl 4096] [#] Endgame KQN-KQN} Qe7 {[%emt 0:01:29] Prevents Qe8+.} 22. Qd2 {[%emt 0:11:25]} h6 {[%emt 0:13:40]} 23. Ne3 {[%emt 0:05:29]} Qe6 {[%emt 0:14:51]} 24. Nxd5 {[%emt 0:05:42]} cxd5 {[%emt 0:00:57] KQ-KQ} 25. Qb2 {[%emt 0:07:22]} b6 {[%emt 0:00:45]} 26. Qb5 {[%emt 0:02:50]} Qe1+ {[%emt 0:02:46]} 27. Kg2 {[%emt 0:00:03]} Qe4+ {[%emt 0:01:57]} 28. Kf1 {[%emt 0:00:35]} Kh7 {[%emt 0:07:44]} 29. a4 {[%emt 0:03:26]} f5 {[%emt 0:03:34]} 30. a5 {[%emt 0:03:46]} bxa5 {[%emt 0:00:12]} 31. Qxa5 {[%emt 0:00:03]} Qd3+ {[%emt 0:05:35]} 32. Kg1 {[%emt 0:01:47]} Qb1+ {[%emt 0:00:29]} 33. Kg2 {[%emt 0:00:03]} Qe4+ {[%emt 0:00:10]} 34. Kf1 {[%emt 0:01:09]} Qd3+ {[%emt 0:00:10]} 35. Kg1 {[%emt 0:00:10]} Qb1+ {[%emt 0:00:14]} 36. Kg2 {[%emt 0:00:06]} Qe4+ {[%emt 0:00:13]} 37. Kf1 {[%emt 0:00:23] An even fight not without its subleties.  Weighted Error Value: White=0.02 (flawless) /Black=0.01 (flawless)} 1/2-1/2